bitfinex-derivatives/quotes_SOLF0:USTF0_20250614
["timestamp","ask_amount","ask_price","bid_price","bid_amount"]
[1749918747724,0.04709708,143.78,143.77,12.18869241]
[1749918747923,0.04709708,143.78,143.77,5.23629241]
[1749918748125,0.04709708,143.78,143.76,35.0]
[1749918748324,0.04709708,143.78,143.76,41.9526]
[1749918749623,0.04709708,143.78,143.76,35.0]
[1749918750833,6.99919708,143.78,143.76,35.0]
[1749918752028,0.04709708,143.78,143.76,35.0]
[1749918752334,0.04709708,143.78,143.76,41.9527]
[1749918752924,0.04709708,143.78,143.76,35.0]
[1749918753334,6.99909708,143.78,143.76,35.0]
[1749918755539,6.9524,143.77,143.76,35.0]
[1749918756446,6.9524,143.77,143.75,8.03437549]
[1749918756834,6.9524,143.77,143.75,2.79808308]
[1749918757144,6.9528,143.76,143.75,2.79808308]
[1749918765551,6.9525,143.77,143.75,2.79808308]
[1749918765745,0.04709708,143.78,143.75,2.79808308]
[1749918765944,13.8954,143.87,143.76,5.23629241]
[1749918765945,35.0,143.85,143.76,5.23629241]
[1749918766140,6.951,143.8,143.76,5.23629241]
[1749918766645,6.951,143.8,143.77,6.9524]
[1749918766846,6.951,143.8,143.77,0.0519976]
[1749918767053,7.00184839,143.8,143.77,0.0519976]
[1749918767550,7.00184839,143.8,143.77,7.0042976]
[1749918768349,6.9515,143.79,143.77,0.0519976]
[1749918768544,0.05084839,143.8,143.77,0.0519976]
[1749918769552,6.9519,143.78,143.77,0.0519976]
[1749918769749,0.05084839,143.8,143.77,0.0519976]
[1749918770046,0.05084839,143.8,143.77,5.28829001]
[1749918770952,0.05084839,143.8,143.77,12.24059001]
[1749918771752,0.05084839,143.8,143.77,0.0519976]
[1749918771949,6.9519,143.78,143.77,0.0519976]
[1749918774151,6.9519,143.78,143.77,9.76e-05]
[1749918776156,6.9528,143.76,143.75,5.497e-05]
[1749918776356,41.9528,143.76,143.75,5.497e-05]
[1749918776565,6.9527,143.77,143.75,5.497e-05]
[1749918776957,35.0,143.8,143.75,5.23634738]
[1749918777158,0.04794597,143.77,143.76,15.59053432]
[1749918777359,0.04794597,143.77,143.76,20.82682673]
[1749918777659,0.04794597,143.77,143.75,13.9238135]
[1749918778859,0.04794597,143.77,143.75,0.04978677]
[1749918779457,0.04794597,143.77,143.75,8.68752109]
[1749918779657,7.00064597,143.77,143.75,8.68752109]
[1749918780058,0.04794597,143.77,143.75,8.68752109]
[1749918780264,6.9528,143.76,143.75,0.04978677]
[1749918780563,0.04794597,143.77,143.75,0.04978677]
[1749918780763,7.00064597,143.77,143.75,8.68752109]
[1749918781158,0.04794597,143.77,143.75,8.68752109]
[1749918782267,0.04794597,143.77,143.76,8.63773432]
[1749918782666,7.00054597,143.77,143.76,8.63773432]
[1749918783867,0.04794597,143.77,143.76,8.63773432]
[1749918786167,7.00034597,143.77,143.76,8.63773432]
[1749918786467,0.04794597,143.77,143.76,8.63773432]
[1749918786770,0.04794597,143.77,143.76,6.9528]
[1749918786970,42.1387,143.83,143.75,53.38268066]
[1749918787172,42.1387,143.83,143.76,8.66684887]
[1749918787371,42.1387,143.83,143.77,8.66684887]
[1749918788070,6.9509,143.8,143.79,0.04878312]
[1749918789765,12.18719241,143.8,143.79,8.312e-05]
[1749918792466,6.9528,143.76,143.75,5.497e-05]
[1749918796167,6.9533,143.75,143.74,9.064e-05]
[1749918796479,40.45817387,143.75,143.65,12.95660148]
[1749918796678,40.45817387,143.75,143.67,6.9569]
[1749918796679,6.9558,143.7,143.67,6.9569]
[1749918796977,35.14,143.73,143.66,12.95660148]
[1749918797180,7.2176,143.78,143.67,35.14]
[1749918797482,0.04785688,143.74,143.71,0.04645855]
[1749918798186,6.9546,143.73,143.71,0.04645855]
[1749918798586,0.04785688,143.74,143.71,0.04645855]
[1749918800383,6.9548,143.72,143.71,0.04645855]
[1749918801383,6.9548,143.72,143.71,5.855e-05]
[1749918802074,40.45544142,143.73,143.64,35.14]
[1749918802075,6.9577,143.66,143.64,35.14]
[1749918802475,6.9582,143.65,143.64,35.14]
[1749918802675,6.9582,143.65,143.61,58.0774429]
[1749918802890,35.14,143.69,143.61,52.76200148]
[1749918803085,0.04732215,143.66,143.64,0.04915264]
[1749918803385,6.9586,143.65,143.64,0.04915264]
[1749918804483,0.04732215,143.66,143.64,0.04915264]
[1749918805284,7.00542215,143.66,143.64,0.04915264]
[1749918807876,0.04732215,143.66,143.64,0.04915264]
[1749918809096,7.00522215,143.66,143.64,0.04915264]
[1749918810984,0.04732215,143.66,143.64,0.04915264]
[1749918811492,0.04732215,143.66,143.64,7.00755264]
[1749918811690,0.04732215,143.66,143.64,0.04915264]
[1749918812096,0.04732215,143.66,143.65,6.9582]
[1749918814396,0.04732215,143.66,143.64,7.00765264]
[1749918814600,0.04732215,143.66,143.64,0.04915264]
[1749918815497,0.04732215,143.66,143.65,6.9582]
[1749918815695,0.04732215,143.66,143.64,0.04915264]
[1749918816095,0.04732215,143.66,143.64,7.00755264]
[1749918816396,0.04732215,143.66,143.64,0.04915264]
[1749918817198,7.00532215,143.66,143.64,0.04915264]
[1749918817402,0.04732215,143.66,143.64,0.04915264]
[1749918818200,7.00522215,143.66,143.64,0.04915264]
[1749918818389,0.04732215,143.66,143.64,0.04915264]
[1749918819900,0.04732215,143.66,143.64,7.00775264]
[1749918820292,0.04732215,143.66,143.64,0.04915264]
[1749918820998,6.9582,143.65,143.64,0.04915264]
[1749918823609,6.96,143.62,143.59,2.2979]
[1749918823902,5.31544142,143.66,143.59,9.2587]
[1749918824203,5.31544142,143.66,143.59,2.2979]
[1749918824398,5.31544142,143.66,143.58,44.8888]
[1749918824600,6.9601,143.62,143.61,0.0533883]
[1749918825800,0.04884499,143.64,143.61,0.0533883]
[1749918826197,6.9591,143.63,143.61,0.0533883]
[1749918826505,0.04884499,143.64,143.61,0.0533883]
[1749918827206,6.9591,143.63,143.61,0.0533883]
[1749918827406,0.04884499,143.64,143.61,0.0533883]
[1749918827998,6.9594,143.63,143.61,0.0533883]
[1749918829199,6.9596,143.62,143.61,0.0533883]
[1749918829399,0.04884499,143.64,143.61,0.0533883]
[1749918831007,6.9596,143.62,143.61,0.0533883]
[1749918831313,37.46884499,143.64,143.61,0.0533883]
[1749918831910,7.00754499,143.64,143.61,0.0533883]
[1749918832408,0.04884499,143.64,143.61,0.0533883]
[1749918832707,6.9595,143.63,143.61,0.0533883]
[1749918833212,0.04884499,143.64,143.54,2.74915737]
[1749918833213,42.74676196,143.62,143.54,2.74915737]
[1749918833506,6.961,143.6,143.55,6.9629]
[1749918833706,45.05632268,143.65,143.56,5.32792268]
[1749918833908,37.42,143.65,143.59,5.32792268]
[1749918834102,0.04470937,143.63,143.61,0.05193079]
[1749918834301,41.9776,143.71,143.61,5.37985347]
[1749918834504,41.9776,143.71,143.63,5.32792268]
[1749918834709,6.9574,143.67,143.63,5.32792268]
[1749918834910,47.30552268,143.71,143.63,5.32792268]
[1749918835113,41.9776,143.71,143.63,5.32792268]
[1749918835307,0.04711558,143.68,143.66,0.04435525]
[1749918835913,7.00411558,143.68,143.66,0.04435525]
[1749918836102,0.04711558,143.68,143.66,0.04435525]
[1749918836307,0.04711558,143.68,143.66,5.37227793]
[1749918836911,0.04711558,143.68,143.66,0.04435525]
[1749918837410,7.00411558,143.68,143.66,0.04435525]
[1749918838407,37.42,143.74,143.67,5.32792268]
[1749918838607,2.2719,143.79,143.69,5.32792268]
[1749918838806,5.32792268,143.78,143.69,5.32792268]
[1749918839018,5.32792268,143.76,143.68,37.42]
[1749918839315,9.96022268,143.77,143.68,37.42]
[1749918839511,9.96022268,143.77,143.71,0.05049866]
[1749918839512,6.9546,143.73,143.71,0.05049866]
[1749918840016,7.00272877,143.74,143.71,0.05049866]
[1749918840212,7.00272877,143.74,143.71,5.37842134]
[1749918840905,0.04872877,143.74,143.71,5.37842134]
[1749918841511,0.04872877,143.74,143.72,39.02]
[1749918842304,6.9543,143.73,143.72,39.02]
[1749918842505,0.04872877,143.74,143.72,39.02]
[1749918843410,7.00272877,143.74,143.72,39.02]
[1749918843811,0.04872877,143.74,143.72,39.02]
[1749918844612,0.04872877,143.74,143.73,6.9543]
[1749918845319,0.04872877,143.74,143.72,44.34792268]
[1749918846324,39.02,143.86,143.72,52.95001682]
[1749918846512,7.60112268,143.85,143.77,5.32792268]
[1749918846821,6.9498,143.83,143.77,44.34792268]
[1749918847214,6.9498,143.83,143.79,0.0529848]
[1749918847215,0.04617708,143.81,143.79,0.0529848]
[1749918847917,6.9509,143.8,143.79,0.0529848]
[1749918849113,5.32792268,143.8,143.72,5.32792268]
[1749918849316,5.32792268,143.8,143.72,44.34792268]
[1749918849911,2.2815,143.81,143.72,44.34792268]
[1749918849912,5.32792268,143.79,143.72,44.34792268]
[1749918850119,0.04893842,143.77,143.74,0.04803669]
[1749918850513,6.9538,143.75,143.74,0.04803669]
[1749918867830,6.9553,143.71,143.68,39.0]
[1749918868232,6.9558,143.7,143.68,39.0]
[1749918868928,6.9562,143.69,143.68,39.04627475]
[1749918869131,0.05189009,143.7,143.68,39.04627475]
[1749918869931,7.00789009,143.7,143.68,39.04627475]
[1749918870234,0.05189009,143.7,143.68,39.04627475]
[1749918871133,6.9562,143.69,143.68,39.04627475]
[1749918872534,7.00799009,143.7,143.68,39.04627475]
[1749918873136,0.05189009,143.7,143.68,39.04627475]
[1749918873834,7.00779009,143.7,143.68,39.04627475]
[1749918874033,0.05189009,143.7,143.68,39.04627475]
[1749918874736,7.00789009,143.7,143.68,39.04627475]
[1749918875440,0.05189009,143.7,143.69,5.32792268]
[1749918877427,0.05189009,143.7,143.69,12.28412268]
[1749918881442,5.32792268,143.77,143.69,5.32792268]
[1749918881936,6.9539,143.74,143.71,6.955]
[1749918882137,2.21,143.79,143.71,5.32792268]
[1749918882329,0.04853715,143.76,143.73,0.04794802]
[1749918882529,7.00173715,143.76,143.73,0.04794802]
[1749918882730,0.04853715,143.76,143.73,5.3758707]
[1749918883038,0.04853715,143.76,143.73,12.3298707]
[1749918883626,7.00163715,143.76,143.73,12.3298707]
[1749918885128,0.04853715,143.76,143.73,0.04794802]
[1749918886340,6.9538,143.75,143.73,0.04794802]
[1749918886541,0.04853715,143.76,143.73,0.04794802]
[1749918886743,6.9536,143.75,143.73,0.04794802]
[1749918887941,6.9536,143.75,143.73,7.00214802]
[1749918888145,0.04853715,143.76,143.73,0.04794802]
[1749918889234,7.00163715,143.76,143.73,7.00204802]
[1749918890045,7.00163715,143.76,143.73,0.04794802]
[1749918890747,7.00163715,143.76,143.73,7.00204802]
[1749918891854,6.9534,143.75,143.73,0.04794802]
[1749918893256,0.04853715,143.76,143.73,0.04794802]
[1749918894153,7.00143715,143.76,143.73,7.00194802]
[1749918896157,0.04853715,143.76,143.74,6.9537]
[1749918897053,0.04853715,143.76,143.73,0.04794802]
[1749918897259,0.04853715,143.76,143.75,6.9533]
[1749918898155,46.19952268,143.84,143.76,6.9524]
[1749918898359,40.8716,143.84,143.76,43.96792268]
[1749918899150,0.04445931,143.81,143.79,0.04732286]
[1749918899754,6.951,143.8,143.79,0.04732286]
[1749918900960,0.04445931,143.81,143.79,0.04732286]
[1749918901160,37.9,143.87,143.79,0.04732286]
[1749918901161,37.9,143.87,143.8,43.22792268]
[1749918901349,10.15332268,143.89,143.82,5.32792268]
[1749918901350,4.8254,143.89,143.82,5.32792268]
[1749918901556,10.45421528,143.89,143.82,5.32792268]
[1749918901753,6.9474,143.88,143.84,6.9489]
[1749918901952,2.3777,143.9,143.84,43.22792268]
[1749918902154,0.05079007,143.88,143.86,0.04415173]
[1749918902462,37.9,143.96,143.86,5.37207441]
[1749918902662,37.9,143.96,143.89,5.32792268]
[1749918902863,6.944,143.95,143.91,12.27352268]
[1749918903059,6.9968,143.98,143.9,5.32792268]
[1749918903365,6.9948262,143.95,143.93,0.04408072]
[1749918904071,6.9442,143.94,143.93,0.04408072]
[1749918906265,6.9947262,143.95,143.93,0.04408072]
[1749918907260,0.0509262,143.95,143.93,0.04408072]
[1749918907665,0.0509262,143.95,143.93,37.92408072]
[1749918909567,6.9442,143.94,143.93,37.92408072]
[1749918909868,6.9442,143.94,143.93,0.04408072]
[1749918913071,6.9947262,143.95,143.93,0.04408072]
[1749918913558,6.9442,143.94,143.93,0.04408072]
[1749918914161,0.0509262,143.95,143.93,5.3720034]
[1749918914369,0.0509262,143.95,143.94,37.88]
[1749918915164,2.2899,144.05,143.97,12.27012268]
[1749918915367,2.2899,144.05,143.98,37.86]
[1749918915757,6.9406,144.02,143.98,44.802]
[1749918915956,2.2899,144.05,143.98,44.802]
[1749918916162,0.04798784,144.03,144.0,0.04731037]
[1749918916468,6.9407,144.02,144.0,0.04731037]
[1749918916770,0.04798784,144.03,144.0,0.04731037]
[1749918917161,6.98798784,144.03,144.0,0.04731037]
[1749918917959,0.04798784,144.03,144.0,6.98851037]
[1749918918374,0.04798784,144.03,144.01,5.32792268]
[1749918919271,0.04798784,144.03,144.0,0.04731037]
[1749918919772,6.98808784,144.03,144.0,0.04731037]
[1749918919964,0.04798784,144.03,144.0,0.04731037]
[1749918920363,6.98798784,144.03,144.0,6.98851037]
[1749918921269,6.98798784,144.03,144.0,0.04731037]
[1749918922266,0.04798784,144.03,144.0,6.98831037]
[1749918923975,0.04798784,144.03,144.01,12.26842268]
[1749918924370,0.04798784,144.03,144.01,5.32792268]
[1749918924674,0.04798784,144.03,144.02,37.84]
[1749918925266,45.42862268,144.1,144.02,37.84]
[1749918925461,6.9381,144.07,144.03,5.32792268]
[1749918926475,0.04687275,144.06,144.04,0.04459189]
[1749918926870,0.04687275,144.06,144.05,6.9388]
[1749918927070,45.45572268,144.13,144.05,5.32792268]
[1749918927276,47.74212268,144.13,144.06,37.84]
[1749918927771,6.9377,144.08,144.06,37.84]
[1749918927977,5.32792268,144.11,144.06,37.84]
[1749918928276,6.9379,144.07,144.06,37.88855457]
[1749918928472,6.9379,144.07,144.06,0.04855457]
[1749918932776,0.04852208,144.08,144.06,0.04855457]
[1749918933576,6.9379,144.07,144.06,0.04855457]
[1749918933974,0.04852208,144.08,144.06,0.04855457]
[1749918935475,6.9379,144.07,144.06,0.04855457]
[1749918938175,6.9379,144.07,144.06,5.457e-05]
[1749918938578,9.3472,144.07,144.06,5.457e-05]
[1749918938982,14.67512268,144.07,144.06,5.457e-05]
[1749918943078,9.3472,144.07,144.06,5.457e-05]
[1749918943676,6.9379,144.07,144.06,5.457e-05]
[1749918947182,0.04852208,144.08,144.06,5.457e-05]
[1749918947683,6.9379,144.07,144.06,5.457e-05]
[1749918950785,6.9379,144.07,144.06,1.00005457]
[1749918951685,6.98612208,144.08,144.06,1.00005457]
[1749918951894,0.04852208,144.08,144.06,1.00005457]
[1749918952391,6.9379,144.07,144.06,1.00005457]
[1749918952781,5.9379,144.07,144.06,5.457e-05]
[1749918955692,0.04852208,144.08,144.06,5.457e-05]
[1749918955991,0.04852208,144.08,144.06,5.32797725]
[1749918957198,37.44,144.15,144.06,5.457e-05]
[1749918957383,5.69258159,144.14,144.07,5.32792268]
[1749918957584,6.9362,144.11,144.07,49.70552268]
[1749918958191,0.04683823,144.1,144.08,0.05108606]
[1749918958493,6.98323823,144.1,144.08,0.05108606]
[1749918960393,0.04683823,144.1,144.08,0.05108606]
[1749918961804,6.98333823,144.1,144.08,0.05108606]
[1749918962098,0.04683823,144.1,144.08,6.98838606]
[1749918962989,0.04683823,144.1,144.09,6.9369]
[1749918963293,37.44,144.15,144.09,6.9369]
[1749918963294,37.44,144.15,144.09,12.26482268]
[1749918963489,5.71539671,144.14,144.09,5.32792268]
[1749918963798,2.3275,144.16,144.09,5.32792268]
[1749918964101,5.71435265,144.15,144.09,5.32792268]
[1749918964300,6.98724302,144.13,144.11,0.05153079]
[1749918965497,6.9355,144.12,144.11,0.05153079]
[1749918971009,6.9355,144.12,144.11,3.079e-05]
[1749918971201,6.9386,144.06,144.04,37.22]
[1749918971401,5.32792268,144.1,144.04,37.22]
[1749918971600,42.54792268,144.1,144.04,37.22]
[1749918971806,5.32792268,144.08,144.04,37.22]
[1749918972001,6.9395,144.04,144.02,2.3149]
[1749918972200,6.98775265,144.04,144.02,2.35920267]
[1749918974903,6.9398,144.03,144.02,2.35920267]
[1749918975100,6.9398,144.03,144.02,0.04430267]
[1749918981508,0.04825265,144.04,144.02,5.37222535]
[1749918982912,0.04825265,144.04,144.02,0.04430267]
[1749918984503,6.9398,144.03,144.02,0.04430267]
[1749918984712,0.04825265,144.04,144.02,5.37222535]
[1749918985214,0.04825265,144.04,144.02,12.31212535]
[1749918985717,6.98765265,144.04,144.02,12.31212535]
[1749918986317,6.98765265,144.04,144.02,5.37222535]
[1749918987117,6.98765265,144.04,144.02,12.31242535]
[1749918988621,6.9398,144.03,144.02,5.37222535]
[1749918989216,6.98775265,144.04,144.02,5.37222535]
[1749918990222,6.9398,144.03,144.02,5.37222535]
[1749918990422,6.9398,144.03,144.02,0.04430267]
[1749918993122,6.98775265,144.04,144.02,0.04430267]
[1749918993519,0.04825265,144.04,144.02,0.04430267]
[1749918994225,6.9398,144.03,144.02,0.04430267]
[1749918995026,6.9398,144.03,144.02,2.67e-06]
[1749919002933,12.26772268,144.03,144.02,2.67e-06]
[1749919004329,6.9432,143.96,143.95,36.74]
[1749919004833,6.9429,143.97,143.95,36.74]
[1749919005426,6.994057,143.97,143.95,36.79297082]
[1749919007228,6.994057,143.97,143.95,0.05297082]
[1749919007430,6.9432,143.96,143.95,0.05297082]
[1749919022242,0.051157,143.97,143.95,0.05297082]
[1749919022550,0.051157,143.97,143.95,5.3808935]
[1749919022739,0.051157,143.97,143.96,6.9432]
[1749919022963,399.8,144.06,143.95,5.3808935]
[1749919023249,36.46,144.07,143.94,174.04]
[1749919023250,6.9403,144.02,144.0,5.32792268]
[1749919023552,41.78792268,144.07,143.99,36.46]
[1749919023852,6.9411,144.01,143.99,36.46]
[1749919024144,6.99157122,144.01,143.99,36.50836238]
[1749919024954,0.05047122,144.01,143.99,36.50836238]
[1749919025150,36.46,144.07,144.0,5.32792268]
[1749919025352,6.9406,144.02,144.0,5.32792268]
[1749919026248,6.99363912,144.02,144.0,5.37327118]
[1749919028149,6.9408,144.01,144.0,5.37327118]
[1749919029149,6.9408,144.01,144.0,0.0453485]
[1749919033354,6.99353912,144.02,144.0,0.0453485]
[1749919034160,0.05303912,144.02,144.0,6.9865485]
[1749919034359,0.05303912,144.02,144.01,5.32792268]
[1749919034961,6.99333912,144.02,144.01,5.32792268]
[1749919035361,0.05303912,144.02,144.01,5.32792268]
[1749919036463,6.99333912,144.02,144.01,5.32792268]
[1749919037169,0.05303912,144.02,144.01,5.32792268]
[1749919038379,6.99333912,144.02,144.01,5.32792268]
[1749919038572,0.05303912,144.02,144.0,0.0453485]
[1749919039173,6.9408,144.01,144.0,0.0453485]
[1749919041577,6.9408,144.01,144.0,4.85e-05]
[1749919042878,6.9446,143.93,143.92,38.7471]
[1749919043377,6.9446,143.93,143.92,36.44]
[1749919045080,6.99488428,143.94,143.92,36.44]
[1749919048585,0.05058428,143.94,143.92,41.76792268]
[1749919048788,36.46,144.02,143.92,41.76792268]
[1749919048982,6.9421,143.99,143.95,5.32792268]
[1749919049184,36.46,144.02,143.95,12.27122268]
[1749919049886,0.04396089,144.0,143.97,0.04402472]
[1749919050086,6.9417,143.99,143.97,0.04402472]
[1749919050485,0.04396089,144.0,143.97,0.04402472]
[1749919050682,6.9422,143.98,143.97,0.04402472]
[1749919052480,6.9419,143.99,143.97,0.04402472]
[1749919053084,6.98546089,144.0,143.97,5.3719474]
[1749919053479,0.04396089,144.0,143.97,5.3719474]
[1749919053674,6.9418,143.99,143.97,5.3719474]
[1749919055290,0.04396089,144.0,143.97,5.3719474]
[1749919056383,6.9421,143.99,143.97,5.3719474]
[1749919057084,6.9421,143.99,143.97,0.04402472]
[1749919057585,6.9422,143.98,143.97,0.04402472]
[1749919068285,6.9419,143.99,143.97,0.04402472]
[1749919068689,6.9422,143.98,143.97,0.04402472]
[1749919074298,0.04396089,144.0,143.97,0.04402472]
[1749919075001,6.9422,143.98,143.97,0.04402472]
[1749919077209,0.04396089,144.0,143.97,0.04402472]
[1749919077410,0.04396089,144.0,143.98,5.32792268]
[1749919077610,6.98546089,144.0,143.98,5.32792268]
[1749919078700,0.04396089,144.0,143.97,36.44402472]
[1749919079102,6.9417,143.99,143.97,36.44402472]
[1749919079303,0.04396089,144.0,143.97,36.44402472]
[1749919079901,6.9422,143.98,143.97,36.44402472]
[1749919080300,6.9422,143.98,143.97,0.04402472]
[1749919083807,6.9451,143.92,143.91,35.8]
[1749919084209,6.9454,143.92,143.88,35.8]
[1749919084508,38.1042,143.97,143.89,5.32792268]
[1749919084809,0.04464773,143.94,143.92,0.05298725]
[1749919085716,6.9446,143.93,143.92,0.05298725]
[1749919086416,6.9446,143.93,143.92,8.725e-05]
[1749919087012,42.7446,143.93,143.92,8.725e-05]
[1749919091911,6.948,143.86,143.85,35.8]
[1749919093420,6.99989636,143.87,143.85,35.8]
[1749919094221,0.05219636,143.87,143.84,0.04418682]
[1749919095131,6.9485,143.85,143.84,0.04418682]
[1749919103231,6.9485,143.85,143.84,8.682e-05]
[1749919104728,0.05219636,143.87,143.84,8.682e-05]
[1749919104729,6.99989636,143.87,143.84,8.682e-05]
[1749919105040,35.82,143.92,143.85,5.32792268]
[1749919105329,35.82,143.92,143.87,5.32792268]
[1749919105518,35.82,143.92,143.86,2.3658]
[1749919105722,6.9473,143.88,143.86,2.3658]
[1749919105918,0.05152835,143.88,143.86,2.41489212]
[1749919108635,0.05152835,143.88,143.86,9.36279212]
[1749919108822,0.05152835,143.88,143.87,5.32792268]
[1749919109028,35.82,143.95,143.87,41.14792268]
[1749919109236,35.82,143.95,143.87,48.09512268]
[1749919109529,5.32792268,143.89,143.75,400.02]
[1749919109730,5.32792268,143.87,143.78,5.32792268]
[1749919109937,6.9498,143.83,143.81,0.04571182]
[1749919110127,0.04735035,143.84,143.81,0.04571182]
[1749919110635,6.9499,143.82,143.81,0.04571182]
[1749919116032,0.04735035,143.84,143.81,0.04571182]
[1749919116541,6.99665035,143.84,143.81,35.80571182]
[1749919117639,0.04735035,143.84,143.81,42.75601182]
[1749919117842,0.04735035,143.84,143.81,35.80571182]
[1749919118236,6.99665035,143.84,143.81,35.80571182]
[1749919118834,6.9496,143.83,143.81,35.80571182]
[1749919119438,6.9499,143.82,143.81,35.80571182]
[1749919127543,6.9495,143.83,143.81,35.80571182]
[1749919127743,0.04735035,143.84,143.81,35.80571182]
[1749919128143,6.9499,143.82,143.81,0.04571182]
[1749919131737,6.9497,143.83,143.81,0.04571182]
[1749919132650,6.9499,143.82,143.81,0.04571182]
[1749919138250,6.9497,143.83,143.81,0.04571182]
[1749919138446,0.04735035,143.84,143.82,35.76]
[1749919138646,0.04735035,143.84,143.82,48.0159992]
[1749919138851,0.04735035,143.84,143.82,52.7650992]
[1749919139353,0.04735035,143.84,143.82,40.5091]
[1749919139556,0.04735035,143.84,143.82,45.81415986]
[1749919140651,0.04735035,143.84,143.82,43.46035986]
[1749919141459,6.99665035,143.84,143.82,38.1553]
[1749919141659,0.04735035,143.84,143.82,35.76]
[1749919142255,0.04735035,143.84,143.81,0.04571182]
[1749919142558,5.35241021,143.84,143.81,0.04571182]
[1749919142758,5.35241021,143.84,143.75,400.02]
[1749919142759,5.30505986,143.82,143.75,442.733]
[1749919142946,5.30505986,143.82,143.75,435.78]
[1749919143151,6.9521,143.78,143.75,442.7332]
[1749919143348,5.30505986,143.82,143.75,442.7332]
[1749919143860,6.9515,143.79,143.77,0.05222848]
[1749919144360,6.99692186,143.8,143.77,0.05222848]
[1749919145263,6.9514,143.79,143.77,0.05222848]
[1749919145460,0.04572186,143.8,143.77,0.05222848]
[1749919146558,6.9517,143.79,143.77,0.05222848]
[1749919148962,6.99682186,143.8,143.77,0.05222848]
[1749919149168,0.04572186,143.8,143.77,5.35728834]
[1749919149466,6.9517,143.79,143.77,0.05222848]
[1749919152063,6.9519,143.78,143.77,0.05222848]
[1749919153968,5.35078172,143.8,143.77,0.05222848]
[1749919153969,6.9515,143.79,143.77,0.05222848]
[1749919154668,6.9519,143.78,143.77,0.05222848]
[1749919156967,6.9519,143.78,143.77,2.848e-05]
[1749919158172,42.7119,143.78,143.77,2.848e-05]
[1749919159167,48.01695986,143.78,143.77,2.848e-05]
[1749919160280,42.7119,143.78,143.77,2.848e-05]
[1749919160773,48.01695986,143.78,143.77,2.848e-05]
[1749919162184,6.9555,143.71,143.69,38.0482]
[1749919162784,6.9555,143.71,143.69,35.76]
[1749919163186,7.00449039,143.71,143.69,35.8040475]
[1749919163491,0.04899039,143.71,143.69,35.8040475]
[1749919165178,0.04899039,143.71,143.69,42.7601475]
[1749919165487,0.04899039,143.71,143.69,35.8040475]
[1749919166183,7.00429039,143.71,143.69,35.8040475]
[1749919166382,0.04899039,143.71,143.69,42.7601475]
[1749919167078,7.00429039,143.71,143.69,35.8040475]
[1749919169182,0.04899039,143.71,143.69,35.8040475]
[1749919169489,0.04899039,143.71,143.69,41.10910736]
[1749919169690,0.04899039,143.71,143.69,48.06510736]
[1749919169886,0.04899039,143.71,143.69,41.10910736]
[1749919170090,35.76,143.78,143.69,41.10910736]
[1749919170286,35.76,143.78,143.69,41.06505986]
[1749919170487,35.76,143.78,143.71,5.30505986]
[1749919171188,6.9536,143.75,143.73,0.05310894]
[1749919172292,6.9538,143.74,143.73,0.05310894]
[1749919172791,0.04624508,143.76,143.73,0.05310894]
[1749919173195,6.9536,143.75,143.73,0.05310894]
[1749919173781,0.04624508,143.76,143.73,0.05310894]
[1749919173997,0.04624508,143.76,143.73,5.3581688]
[1749919174299,0.04624508,143.76,143.74,6.9535]
[1749919175093,6.99904508,143.76,143.73,48.0922688]
[1749919175391,6.99904508,143.76,143.73,41.1381688]
[1749919176493,0.04624508,143.76,143.74,6.9538]
[1749919178099,35.78,143.81,143.75,5.30505986]
[1749919178391,6.9521,143.78,143.75,12.25815986]
[1749919179191,6.99936622,143.78,143.75,12.30748837]
[1749919180692,35.74,143.84,143.75,5.35438837]
[1749919180889,35.74,143.84,143.77,5.30505986]
[1749919181095,35.74,143.84,143.77,41.04505986]
[1749919181397,6.9512,143.8,143.77,47.99715986]
[1749919181697,35.74,143.84,143.77,41.04505986]
[1749919181898,0.05049563,143.8,143.77,35.78734492]
[1749919182487,7.00159563,143.8,143.77,35.78734492]
[1749919183898,0.05049563,143.8,143.77,48.04470478]
[1749919184092,0.05049563,143.8,143.77,41.09240478]
[1749919184495,0.05049563,143.8,143.78,6.9516]
[1749919184897,0.05049563,143.8,143.77,35.78734492]
[1749919185504,7.00179563,143.8,143.77,42.73964492]
[1749919186305,7.00179563,143.8,143.77,35.78734492]
[1749919187006,7.00179563,143.8,143.77,42.73944492]
[1749919188100,7.00179563,143.8,143.77,35.78734492]
[1749919189008,7.00179563,143.8,143.77,42.73964492]
[1749919190011,7.00179563,143.8,143.77,35.78734492]
[1749919190710,6.9515,143.79,143.77,35.78734492]
[1749919191506,0.05049563,143.8,143.77,35.78734492]
[1749919191916,6.9517,143.79,143.77,35.78734492]